fUST/lending_fUST_20250814
["ID","MTS","AMOUNT","RATE_DAILY","PERIOD"]
[379072878,1755115880078,-469.49,0.00020821,2]
[379072879,1755115880087,-460.0,0.00020821,2]
[379072880,1755115880097,-460.0,0.00020821,2]
[379072881,1755115880106,-460.0,0.00020821,2]
[379072882,1755115880116,-460.0,0.00020821,2]
[379072883,1755115880125,-460.0,0.00020821,2]
[379072884,1755115880134,-460.0,0.00020821,2]
[379072885,1755115880144,-460.0,0.00020821,2]
[379072886,1755115880153,-556.82947604,0.00020821,2]
[379072887,1755115880163,-460.0,0.00020821,2]
[379072888,1755115880172,-475.12,0.00020821,2]
[379072889,1755115880185,-511.01636082,0.00020821,2]
[379072890,1755115880194,-460.0,0.00020821,2]
[379072891,1755115880204,-460.0,0.00020821,2]
[379072892,1755115880214,-585.4,0.00020821,2]
[379072893,1755115880225,-460.0,0.00020821,2]
[379072894,1755115880234,-701.63,0.00020821,2]
[379072895,1755115880243,-460.0,0.00020821,2]
[379072896,1755115880254,-460.0,0.00020821,2]
[379072897,1755115880263,-460.0,0.00020821,2]
[379072898,1755115880272,-460.0,0.00020821,2]
[379072899,1755115880282,-506.15,0.00020821,2]
[379072900,1755115880291,-772.37,0.00020821,2]
[379072901,1755115880300,-460.0,0.00020821,2]
[379072902,1755115880310,-460.0,0.00020821,2]
[379072903,1755115880319,-460.0,0.00020821,2]
[379072904,1755115880329,-460.0,0.00020821,2]
[379072905,1755115880340,-460.0,0.00020821,2]
[379072906,1755115880350,-460.0,0.00020821,2]
[379072907,1755115880360,-500.0,0.00020821,2]
[379072908,1755115880370,-151.634012,0.00020821,2]
[379072909,1755115880380,-460.0,0.00020821,2]
[379072910,1755115880389,-460.0,0.00020821,2]
[379072911,1755115880399,-460.0,0.00020821,2]
[379072912,1755115880408,-460.0,0.00020821,2]
[379072913,1755115880418,-499.24,0.00020821,2]
[379072914,1755115880428,-460.0,0.00020821,2]
[379072915,1755115880437,-460.0,0.00020821,2]
[379072916,1755115880447,-460.0,0.00020821,2]
[379072917,1755115880455,-460.0,0.00020821,2]
[379072918,1755115880465,-1083.49,0.00020821,2]
[379072919,1755115880474,-634.17,0.00020821,2]
[379072920,1755115880483,-1683.37,0.00020821,2]
[379072921,1755115880493,-1312.7,0.00020821,2]
[379072922,1755115880502,-552.5,0.00020821,2]
[379072923,1755115880511,-460.0,0.00020821,2]
[379072924,1755115880521,-460.0,0.00020821,2]
[379072925,1755115880530,-411.21365427,0.00020821,2]
[379072926,1755115880539,-460.0,0.00020821,2]
[379072927,1755115880549,-460.0,0.00020821,2]
[379072928,1755115880566,-460.0,0.00020821,2]
[379072929,1755115880575,-1170.68,0.00020821,2]
[379072930,1755115880584,-460.0,0.00020821,2]
[379072931,1755115880594,-460.0,0.00020821,2]
[379072932,1755115880603,-460.0,0.00020821,2]
[379072933,1755115880613,-460.0,0.00020821,2]
[379072934,1755115880623,-460.0,0.00020821,2]
[379072935,1755115880632,-788.14,0.00020821,2]
[379072936,1755115880641,-460.0,0.00020821,2]
[379072937,1755115880651,-258.839888,0.00020821,2]
[379072938,1755115880660,-460.0,0.00020821,2]
[379072939,1755115880669,-258.839888,0.00020821,2]
[379072940,1755115880679,-740.52,0.00020821,2]
[379072941,1755115880688,-460.0,0.00020821,2]
[379072942,1755115880697,-1140.3,0.00020821,2]
[379072943,1755115880706,-460.0,0.00020821,2]
[379072944,1755115880715,-863.07,0.00020821,2]
[379072945,1755115880725,-1663.95,0.00020821,2]
[379072946,1755115880734,-285.81,0.00020821,2]
[379072947,1755115880744,-961.59,0.00020821,2]
[379072948,1755115880754,-579.66,0.00020821,2]
[379072949,1755115880763,-460.0,0.00020821,2]
[379072950,1755115880772,-460.0,0.00020821,2]
[379072951,1755115880782,-460.0,0.00020821,2]
[379072952,1755115880791,-460.0,0.00020821,2]
[379072953,1755115880801,-460.0,0.00020821,2]
[379072954,1755115880811,-1069.56,0.00020821,2]
[379072955,1755115880820,-1437.38,0.00020821,2]
[379072956,1755115880829,-460.0,0.00020821,2]
[379072957,1755115880839,-460.0,0.00020821,2]
[379072958,1755115880848,-469.65,0.00020821,2]
[379072959,1755115880858,-460.0,0.00020821,2]
[379072960,1755115880867,-460.0,0.00020821,2]
[379072961,1755115880877,-460.0,0.00020821,2]
[379072962,1755115880887,-460.0,0.00020821,2]
[379072963,1755115880896,-151.0,0.00020821,2]
[379072964,1755115880907,-460.0,0.00020821,2]
[379072965,1755115880919,-460.0,0.00020821,2]
[379072966,1755115880929,-531.3447257,0.00020821,2]
[379072967,1755115880939,-558.3046011,0.00020821,2]
[379072968,1755115880949,-460.0,0.00020821,2]
[379072969,1755115880960,-460.0,0.00020821,2]
[379072970,1755115880970,-460.0,0.00020821,2]
[379072971,1755115880980,-460.0,0.00020821,2]
[379072972,1755115880989,-460.0,0.00020821,2]
[379072973,1755115880999,-460.0,0.00020821,2]
[379072974,1755115881008,-467.85,0.00020821,2]
[379072975,1755115881017,-460.0,0.00020821,2]
[379072976,1755115881027,-460.0,0.00020821,2]
[379072977,1755115881036,-1485.36,0.00020821,2]
[379072978,1755115881046,-460.0,0.00020821,2]
[379072979,1755115881055,-1252.41,0.00020821,2]
[379072980,1755115881065,-460.0,0.00020821,2]
[379072981,1755115881074,-602.53,0.00020821,2]
[379072982,1755115881083,-905.73,0.00020821,2]
[379072983,1755115881092,-460.0,0.00020821,2]
[379072984,1755115881102,-460.0,0.00020821,2]
[379072985,1755115881111,-460.0,0.00020821,2]
[379072986,1755115881120,-2758.86,0.00020821,2]
[379072987,1755115881130,-735.89,0.00020821,2]
[379072988,1755115881139,-460.0,0.00020821,2]
[379072989,1755115881149,-460.0,0.00020821,2]
[379072990,1755115881158,-444.49533362,0.00020821,2]
[379072991,1755115881168,-504.54,0.00020821,2]
[379072992,1755115881180,-460.0,0.00020821,2]
[379072993,1755115881190,-460.0,0.00020821,2]
[379072994,1755115881199,-460.0,0.00020821,2]
[379072995,1755115881209,-460.0,0.00020821,2]
[379072996,1755115881220,-460.0,0.00020821,2]
[379072997,1755115881229,-619.7,0.00020821,2]
[379072998,1755115881238,-618.3,0.00020821,2]
[379072999,1755115881247,-577.53,0.00020821,2]
[379073000,1755115881259,-477.37,0.00020821,2]
[379073001,1755115881270,-332.06121132,0.00020821,2]
[379073002,1755115881280,-460.0,0.00020821,2]
[379073003,1755115881289,-460.0,0.00020821,2]
[379073004,1755115881299,-460.0,0.00020821,2]
[379073005,1755115881309,-621.59,0.00020821,2]
[379073006,1755115881318,-718.3,0.00020821,2]
[379073007,1755115881327,-482.48,0.00020821,2]
[379073008,1755115881337,-460.0,0.00020821,2]
[379073009,1755115881347,-460.0,0.00020821,2]
[379073010,1755115881357,-841.58,0.00020821,2]
[379073011,1755115881366,-460.0,0.00020821,2]
[379073012,1755115881375,-460.0,0.00020821,2]
[379073013,1755115881385,-460.0,0.00020821,2]
[379073014,1755115881394,-460.0,0.00020821,2]
[379073015,1755115881404,-460.0,0.00020821,2]
[379073016,1755115881413,-460.0,0.00020821,2]
[379073017,1755115881422,-460.0,0.00020821,2]
[379073018,1755115881432,-1057.0,0.00020821,2]
[379073019,1755115881442,-725.98,0.00020821,2]
[379073020,1755115881451,-460.0,0.00020821,2]
[379073021,1755115881461,-460.0,0.00020821,2]
[379073022,1755115881470,-1761.85,0.00020821,2]
[379073023,1755115881480,-468.52,0.00020821,2]
[379073024,1755115881490,-460.0,0.00020821,2]
[379073025,1755115881499,-573.0,0.00020821,2]
[379073026,1755115881510,-668.47,0.00020821,2]
[379073027,1755115881520,-611.81,0.00020821,2]
[379073028,1755115881534,-1341.69,0.00020821,2]
[379073029,1755115881543,-659.86,0.00020821,2]
[379073030,1755115881554,-460.0,0.00020821,2]
[379073031,1755115881564,-460.0,0.00020821,2]
[379073032,1755115881574,-740.97,0.00020821,2]
[379073033,1755115881583,-460.0,0.00020821,2]
[379073034,1755115881594,-460.0,0.00020821,2]
[379073035,1755115881603,-460.0,0.00020821,2]
[379073036,1755115881613,-460.0,0.00020821,2]
[379073037,1755115881622,-563.24,0.00020821,2]
[379073038,1755115881632,-460.0,0.00020821,2]
[379073039,1755115881642,-758.65,0.00020821,2]
[379073040,1755115881651,-2239.5,0.00020821,2]
[379073041,1755115881661,-460.0,0.00020821,2]
[379073042,1755115881670,-1881.39,0.00020821,2]
[379073043,1755115881680,-460.0,0.00020821,2]
[379073044,1755115881690,-523.08,0.00020821,2]
[379073045,1755115881700,-850.59,0.00020821,2]
[379073046,1755115881709,-2386.49,0.00020821,2]
[379073047,1755115881719,-989.38,0.00020821,2]
[379073048,1755115881728,-460.0,0.00020821,2]
[379073049,1755115881737,-753.2,0.00020821,2]
[379073050,1755115881746,-6147.95,0.00020821,2]
[379073051,1755115881755,-460.0,0.00020821,2]
[379073052,1755115881765,-1410.98,0.00020821,2]
[379073053,1755115881776,-460.0,0.00020821,2]
[379073054,1755115881786,-1219.51,0.00020821,2]
[379073055,1755115881795,-460.0,0.00020821,2]
[379073056,1755115881804,-1932.04,0.00020821,2]
[379073057,1755115881813,-460.0,0.00020821,2]
[379073058,1755115881823,-460.0,0.00020821,2]
[379073059,1755115881832,-460.0,0.00020821,2]
[379073060,1755115881842,-460.0,0.00020821,2]
[379073061,1755115881851,-814.53,0.00020821,2]
[379073062,1755115881860,-460.0,0.00020821,2]
[379073063,1755115881869,-460.0,0.00020821,2]
[379073064,1755115881878,-437.47828586,0.00020821,2]
[379073065,1755115881887,-460.0,0.00020821,2]
[379073066,1755115881896,-460.0,0.00020821,2]
[379073067,1755115881905,-460.0,0.00020821,2]
[379073068,1755115881914,-460.0,0.00020821,2]
[379073069,1755115881924,-812.34,0.00020821,2]
[379073070,1755115881934,-460.0,0.00020821,2]
[379073071,1755115881943,-1280.72,0.00020821,2]
[379073072,1755115881952,-735.0,0.00020821,2]
[379073073,1755115881962,-545.15,0.00020821,2]
[379073074,1755115881971,-460.0,0.00020821,2]
[379073075,1755115881981,-4267.69,0.00020821,2]
[379073076,1755115881990,-4192.29,0.00020821,2]
[379073077,1755115882000,-460.0,0.00020821,2]
[379073078,1755115882009,-460.0,0.00020821,2]
[379073079,1755115882018,-1382.67,0.00020821,2]
[379073080,1755115882030,-460.0,0.00020821,2]
[379073081,1755115882039,-923.5,0.00020821,2]
[379073082,1755115882049,-567.17,0.00020821,2]
[379073083,1755115882058,-460.0,0.00020821,2]
[379073084,1755115882067,-460.0,0.00020821,2]
[379073085,1755115882078,-491.54265351,0.00020821,2]
[379073086,1755115882087,-1960.74,0.00020821,2]
[379073087,1755115882096,-650.46,0.00020821,2]
[379073088,1755115882106,-672.78,0.00020821,2]
[379073089,1755115882116,-460.0,0.00020821,2]
[379073090,1755115882126,-460.0,0.00020821,2]
[379073091,1755115882135,-543.86,0.00020821,2]
[379073092,1755115882144,-472.25,0.00020821,2]
[379073093,1755115882153,-460.0,0.00020821,2]
[379073094,1755115882163,-1053.23,0.00020821,2]
[379073095,1755115882173,-573.95,0.00020821,2]
[379073096,1755115882185,-460.0,0.00020821,2]
[379073097,1755115882195,-460.0,0.00020821,2]
[379073098,1755115882204,-576.66,0.00020821,2]
[379073099,1755115882213,-474.27,0.00020821,2]
[379073100,1755115882223,-460.0,0.00020821,2]
[379073101,1755115882233,-263.33960483,0.00020821,2]
[379073102,1755115882242,-460.0,0.00020821,2]
[379073103,1755115882253,-460.0,0.00020821,2]
[379073104,1755115882262,-662.93,0.00020821,2]
[379073105,1755115882274,-460.0,0.00020821,2]
[379073106,1755115882284,-543.96,0.00020821,2]
[379073107,1755115882293,-2189.79,0.00020821,2]
[379073108,1755115882303,-460.0,0.00020821,2]
[379073109,1755115882312,-669.33,0.00020821,2]
[379073110,1755115882322,-460.0,0.00020821,2]
[379073111,1755115882331,-946.5,0.00020821,2]
[379073112,1755115882341,-489.38,0.00020821,2]
[379073113,1755115882350,-460.0,0.00020821,2]
[379073114,1755115882359,-460.0,0.00020821,2]
[379073115,1755115882368,-1436.04,0.00020821,2]
[379073116,1755115882378,-507.52,0.00020821,2]
[379073117,1755115882387,-538.82362979,0.00020821,2]
[379073118,1755115882397,-460.0,0.00020821,2]
[379073119,1755115882406,-1824.0,0.00020821,2]
[379073120,1755115882415,-733.14,0.00020821,2]
[379073121,1755115882425,-460.0,0.00020821,2]
[379073122,1755115882434,-478.0,0.00020821,2]
[379073123,1755115882444,-542.62,0.00020821,2]
[379073124,1755115882453,-460.0,0.00020821,2]
[379073125,1755115882463,-460.0,0.00020821,2]
[379073126,1755115882472,-460.0,0.00020821,2]
[379073127,1755115882481,-1363.79,0.00020821,2]
[379073128,1755115882491,-460.0,0.00020821,2]
[379073129,1755115882501,-460.0,0.00020821,2]
[379073130,1755115882510,-710.55,0.00020821,2]
[379073131,1755115882519,-411.38634953,0.00020821,2]
[379073132,1755115882532,-460.0,0.00020821,2]
[379073133,1755115882541,-460.0,0.00020821,2]
[379073134,1755115882550,-460.0,0.00020821,2]
[379073135,1755115882560,-2530.94,0.00020821,2]
[379073136,1755115882569,-1829.45,0.00020821,2]
[379073137,1755115882578,-460.0,0.00020821,2]
[379073138,1755115882587,-573.95,0.00020821,2]
[379073139,1755115882596,-460.0,0.00020821,2]
[379073140,1755115882606,-460.0,0.00020821,2]
[379073141,1755115882615,-1224.78,0.00020821,2]
[379073142,1755115882624,-460.0,0.00020821,2]
[379073143,1755115882633,-1547.71,0.00020821,2]
[379073144,1755115882643,-737.39,0.00020821,2]
[379073145,1755115882652,-460.0,0.00020821,2]
[379073146,1755115882662,-460.0,0.00020821,2]
[379073147,1755115882671,-1811.96,0.00020821,2]
[379073148,1755115882683,-460.0,0.00020821,2]
[379073149,1755115882692,-460.0,0.00020821,2]
[379073150,1755115882700,-460.0,0.00020821,2]
[379073151,1755115882710,-460.0,0.00020821,2]
[379073152,1755115882719,-460.0,0.00020821,2]
[379073153,1755115882728,-480.62247228,0.00020821,2]
[379073154,1755115882737,-460.0,0.00020821,2]
[379073155,1755115882747,-460.0,0.00020821,2]
[379073156,1755115882756,-460.0,0.00020821,2]
[379073157,1755115882765,-1053.5,0.00020821,2]
[379073158,1755115882776,-1353.67,0.00020821,2]
[379073159,1755115882785,-460.0,0.00020821,2]
[379073160,1755115882794,-3269.31,0.00020821,2]
[379073161,1755115882803,-460.0,0.00020821,2]
[379073162,1755115882812,-3653.82,0.00020821,2]
[379073163,1755115882821,-460.0,0.00020821,2]
[379073164,1755115882830,-460.0,0.00020821,2]
[379073165,1755115882839,-161.65544436,0.00020821,2]
[379073166,1755115882848,-472.6,0.00020821,2]
[379073167,1755115882857,-854.33,0.00020821,2]
[379073168,1755115882866,-341.09328199,0.00020821,2]
[379073169,1755115882875,-3963.71,0.00020821,2]
[379073170,1755115882884,-460.0,0.00020821,2]
[379073171,1755115882894,-460.0,0.00020821,2]
[379073172,1755115882902,-746.01,0.00020821,2]
[379073173,1755115882911,-661.67,0.00020821,2]
[379073174,1755115882920,-635.51,0.00020821,2]
[379073175,1755115882929,-2762.44,0.00020821,2]
[379073176,1755115882938,-460.0,0.00020821,2]
[379073177,1755115882947,-770.63,0.00020821,2]
[379073178,1755115882956,-460.0,0.00020821,2]
[379073179,1755115882965,-1663.54,0.00020821,2]
[379073180,1755115882974,-460.0,0.00020821,2]
[379073181,1755115882984,-950.59,0.00020821,2]
[379073182,1755115882993,-1920.17,0.00020821,2]
[379073183,1755115883150,-823.48,0.00020821,2]
[379073184,1755115883159,-480.24,0.00020821,2]
[379073185,1755115883170,-852.98,0.00020821,2]
[379073186,1755115883182,-460.0,0.00020821,2]
[379073187,1755115883192,-786.91,0.00020821,2]
[379073188,1755115883201,-1415.94,0.00020821,2]
[379073189,1755115883210,-460.0,0.00020821,2]
[379073190,1755115883221,-460.0,0.00020821,2]
[379073191,1755115883231,-564.18,0.00020821,2]
[379073192,1755115883240,-460.0,0.00020821,2]
[379073193,1755115883251,-460.0,0.00020821,2]
[379073194,1755115883261,-1035.39,0.00020821,2]
[379073195,1755115883273,-2050.41,0.00020821,2]
[379073196,1755115883283,-460.0,0.00020821,2]
[379073197,1755115883293,-460.0,0.00020821,2]
[379073198,1755115883302,-1312.86,0.00020821,2]
[379073199,1755115883312,-460.0,0.00020821,2]
[379073200,1755115883321,-757.19,0.00020821,2]
[379073201,1755115883331,-1767.5,0.00020821,2]
[379073202,1755115883341,-596.07,0.00020821,2]
[379073203,1755115883351,-460.0,0.00020821,2]
[379073204,1755115883360,-460.0,0.00020821,2]
[379073205,1755115883370,-1225.81,0.00020821,2]
[379073206,1755115883379,-1021.93,0.00020821,2]
[379073207,1755115883388,-1655.44,0.00020821,2]
[379073208,1755115883398,-509.79,0.00020821,2]
[379073209,1755115883408,-460.0,0.00020821,2]
[379073210,1755115883417,-460.0,0.00020821,2]
[379073211,1755115883426,-1703.22,0.00020821,2]
[379073212,1755115883435,-460.0,0.00020821,2]
[379073213,1755115883444,-460.0,0.00020821,2]
[379073214,1755115883454,-791.06,0.00020821,2]
[379073215,1755115883464,-460.0,0.00020821,2]
[379073216,1755115883473,-4058.25,0.00020821,2]
[379073217,1755115883483,-460.0,0.00020821,2]
[379073218,1755115883492,-460.0,0.00020821,2]
[379073219,1755115883501,-460.0,0.00020821,2]
[379073220,1755115883511,-460.0,0.00020821,2]
[379073221,1755115883520,-460.0,0.00020821,2]
[379073222,1755115883531,-2019.38,0.00020821,2]
[379073223,1755115883541,-460.0,0.00020821,2]
[379073224,1755115883550,-460.0,0.00020821,2]
[379073225,1755115883559,-6700.12,0.00020821,2]
[379073226,1755115883569,-460.0,0.00020821,2]
[379073227,1755115883578,-1104.55,0.00020821,2]
[379073228,1755115883587,-460.0,0.00020821,2]
[379073229,1755115883596,-684.95,0.00020821,2]
[379073230,1755115883605,-1758.47,0.00020821,2]
[379073231,1755115883615,-460.0,0.00020821,2]
[379073232,1755115883624,-460.0,0.00020821,2]
[379073233,1755115883634,-460.0,0.00020821,2]
[379073234,1755115883644,-460.0,0.00020821,2]
[379073235,1755115883653,-460.0,0.00020821,2]
[379073236,1755115883663,-1671.8,0.00020821,2]
[379073237,1755115883672,-11030.84,0.00020821,2]
[379073238,1755115883681,-460.0,0.00020821,2]
[379073239,1755115883691,-460.0,0.00020821,2]
[379073240,1755115883700,-460.0,0.00020821,2]
[379073241,1755115883710,-460.0,0.00020821,2]
[379073242,1755115883719,-460.0,0.00020821,2]
[379073243,1755115883729,-460.0,0.00020821,2]
[379073244,1755115883739,-762.63,0.00020821,2]
[379073245,1755115883748,-460.0,0.00020821,2]
[379073246,1755115883757,-460.0,0.00020821,2]
[379073247,1755115883766,-8448.68,0.00020821,2]
[379073248,1755115883776,-460.0,0.00020821,2]
[379073249,1755115883785,-3051.43,0.00020821,2]
[379073250,1755115883794,-460.0,0.00020821,2]
[379073251,1755115883804,-460.0,0.00020821,2]
[379073252,1755115883813,-460.0,0.00020821,2]
[379073253,1755115883822,-460.0,0.00020821,2]
[379073254,1755115883831,-460.0,0.00020821,2]
[379073255,1755115883841,-691.76,0.00020821,2]
[379073256,1755115883850,-460.0,0.00020821,2]
[379073257,1755115883859,-460.0,0.00020821,2]
[379073258,1755115883868,-460.0,0.00020821,2]
[379073259,1755115883878,-460.0,0.00020821,2]
[379073260,1755115883887,-180.14231243,0.00020956,2]
[379073261,1755115883898,-3778.1564674,0.00021011,2]
[379073262,1755115883910,-151.0,0.00021095,2]
[379073263,1755115883920,-151.0,0.00021095,2]
[379073264,1755115883929,-151.0,0.00021095,2]
[379073265,1755115883938,-151.0,0.00021095,2]
[379073266,1755115883948,-151.0,0.00021095,2]
[379073267,1755115883958,-151.0,0.00021095,2]
[379073268,1755115883968,-151.0,0.00021095,2]
[379073269,1755115883977,-151.0,0.00021095,2]
[379073270,1755115883986,-151.216916,0.00021095,2]
[379073271,1755115883996,-151.0,0.00021095,2]
[379073272,1755115884006,-1462.191758,0.00021095,2]
[379073273,1755115884015,-1462.191758,0.00021095,2]
[379073274,1755115884025,-151.0,0.00021095,2]
[379073275,1755115884036,-151.0,0.00021095,2]
[379073276,1755115884045,-732.95,0.00021095,2]
[379073277,1755115884055,-1719.5,0.00021095,2]
[379073278,1755115884064,-460.0,0.00021095,2]
[379073279,1755115884073,-460.0,0.00021095,2]
[379073280,1755115884082,-460.0,0.00021095,2]
[379073281,1755115884091,-662.8,0.00021095,2]
[379073282,1755115884102,-460.0,0.00021095,2]
[379073283,1755115884111,-578.27,0.00021095,2]
[379073284,1755115884121,-462.01,0.00021095,2]
[379073285,1755115884131,-460.0,0.00021095,2]
[379073286,1755115884140,-469.49,0.00021095,2]
[379073287,1755115884150,-460.0,0.00021095,2]
[379073288,1755115884159,-460.0,0.00021095,2]
[379073289,1755115884168,-460.0,0.00021095,2]
[379073290,1755115884179,-460.0,0.00021095,2]
[379073291,1755115884192,-460.0,0.00021095,2]
[379073292,1755115884202,-460.0,0.00021095,2]
[379073293,1755115884211,-460.0,0.00021095,2]
[379073294,1755115884222,-475.12,0.00021095,2]
[379073295,1755115884231,-460.0,0.00021095,2]
[379073296,1755115884241,-460.0,0.00021095,2]
[379073297,1755115884251,-585.4,0.00021095,2]
[379073298,1755115884263,-460.0,0.00021095,2]
[379073299,1755115884274,-701.63,0.00021095,2]
[379073300,1755115884284,-460.0,0.00021095,2]
[379073301,1755115884294,-460.0,0.00021095,2]
[379073302,1755115884305,-460.0,0.00021095,2]
[379073303,1755115884314,-460.0,0.00021095,2]
[379073304,1755115884325,-506.15,0.00021095,2]
[379073305,1755115884336,-772.37,0.00021095,2]
[379073306,1755115884346,-377.96109935,0.00021095,2]
[379073307,1755115884356,-460.0,0.00021095,2]
[379073308,1755115884366,-460.0,0.00021095,2]
[379073309,1755115884377,-460.0,0.00021095,2]
[379073310,1755115884388,-460.0,0.00021095,2]
[379073311,1755115884398,-460.0,0.00021095,2]
[379073312,1755115884407,-500.0,0.00021095,2]
[379073313,1755115884417,-460.0,0.00021095,2]
[379073314,1755115884427,-460.0,0.00021095,2]
[379073315,1755115884437,-460.0,0.00021095,2]
[379073316,1755115884447,-460.0,0.00021095,2]
[379073317,1755115884456,-499.24,0.00021095,2]
[379073318,1755115884466,-460.0,0.00021095,2]
[379073319,1755115884476,-460.0,0.00021095,2]
[379073320,1755115884489,-460.0,0.00021095,2]
[379073321,1755115884499,-460.0,0.00021095,2]
[379073322,1755115884511,-1083.49,0.00021095,2]
[379073323,1755115884521,-634.17,0.00021095,2]
[379073324,1755115884531,-1683.37,0.00021095,2]
[379073325,1755115884541,-1312.7,0.00021095,2]
[379073326,1755115884550,-552.5,0.00021095,2]
[379073327,1755115884559,-510.80696361,0.00021095,2]
[379073328,1755115884569,-460.0,0.00021095,2]
[379073329,1755115884578,-460.0,0.00021095,2]
[379073330,1755115884588,-460.0,0.00021095,2]
[379073331,1755115884597,-460.0,0.00021095,2]
[379073332,1755115884607,-1170.68,0.00021095,2]
[379073333,1755115884617,-460.0,0.00021095,2]
[379073334,1755115884626,-460.0,0.00021095,2]
[379073335,1755115884636,-460.0,0.00021095,2]
[379073336,1755115884645,-460.0,0.00021095,2]
[379073337,1755115884654,-460.0,0.00021095,2]
[379073338,1755115884664,-788.14,0.00021095,2]
[379073339,1755115884673,-460.0,0.00021095,2]
[379073340,1755115884682,-740.52,0.00021095,2]
[379073341,1755115884692,-460.0,0.00021095,2]
[379073342,1755115884701,-1140.3,0.00021095,2]
[379073343,1755115884711,-460.0,0.00021095,2]
[379073344,1755115884719,-863.07,0.00021095,2]
[379073345,1755115884729,-1663.95,0.00021095,2]
[379073346,1755115884739,-961.59,0.00021095,2]
[379073347,1755115884752,-579.66,0.00021095,2]
[379073348,1755115884764,-460.0,0.00021095,2]
[379073349,1755115884775,-460.0,0.00021095,2]
[379073350,1755115884790,-460.0,0.00021095,2]
[379073351,1755115884801,-460.0,0.00021095,2]
[379073352,1755115884812,-1069.56,0.00021095,2]
[379073353,1755115884821,-1437.38,0.00021095,2]
[379073354,1755115884830,-460.0,0.00021095,2]
[379073355,1755115884840,-460.0,0.00021095,2]
[379073356,1755115884849,-460.0,0.00021095,2]
[379073357,1755115884859,-357.57664687,0.00021095,2]
[379073358,1755115884868,-460.0,0.00021095,2]
[379073359,1755115884879,-460.0,0.00021095,2]
[379073360,1755115884889,-460.0,0.00021095,2]
[379073361,1755115884898,-460.0,0.00021095,2]
[379073362,1755115884908,-255.89055285,0.00021095,2]
[379073363,1755115884917,-460.0,0.00021095,2]
[379073364,1755115884926,-460.0,0.00021095,2]
[379073365,1755115884935,-460.0,0.00021095,2]
[379073366,1755115884945,-460.0,0.00021095,2]
[379073367,1755115884954,-467.85,0.00021095,2]
[379073368,1755115884964,-460.0,0.00021095,2]
[379073369,1755115884972,-460.0,0.00021095,2]
[379073370,1755115884982,-1485.36,0.00021095,2]
[379073371,1755115884991,-499.3,0.00021095,2]
[379073372,1755115885000,-1252.41,0.00021095,2]
[379073373,1755115885009,-460.0,0.00021095,2]
[379073374,1755115885019,-602.53,0.00021095,2]
[379073375,1755115885029,-905.73,0.00021095,2]
[379073376,1755115885038,-460.0,0.00021095,2]
[379073377,1755115885047,-460.0,0.00021095,2]